bitfinex-derivatives/quotes_BTCF0:USTF0_20241117
["timestamp","ask_amount","ask_price","bid_price","bid_amount"]
[1731868705869,0.12923861,90007.0,90006.0,0.147709]
[1731868706178,0.00010852,90012.0,90006.0,0.09216]
[1731868706470,0.00010852,90012.0,90007.0,0.055548]
[1731868707573,0.00010852,90012.0,90006.0,0.29177226]
[1731868707574,0.055547,90010.0,90006.0,0.29177226]
[1731868707765,0.055548,90008.0,90006.0,0.29177226]
[1731868707966,0.055548,90008.0,90006.0,0.09216]
[1731868708161,0.36090852,90012.0,90004.0,0.19946553]
[1731868708162,0.08540355,90009.0,90004.0,0.19946553]
[1731868708374,0.14095555,90001.0,89999.0,0.19946553]
[1731868708568,0.14095555,90001.0,89996.0,0.19946553]
[1731868708569,0.3608,90000.0,89996.0,0.19946553]
[1731868708877,0.055554,89997.0,89995.0,0.19946553]
[1731868709072,0.055554,89997.0,89993.0,0.09216]
[1731868709073,0.3608,90000.0,89994.0,0.19946553]
[1731868709263,0.3608,90000.0,89993.0,0.29167043]
[1731868709264,0.055556,89994.0,89993.0,0.29167043]
[1731868709776,0.055556,89994.0,89993.0,0.2916663]
[1731868709975,0.055556,89994.0,89993.0,0.2916653]
[1731868710687,0.055556,89994.0,89993.0,0.09216]
[1731868713069,0.3608,90000.0,89983.0,0.00012217]
[1731868713070,0.055558,89990.0,89989.0,0.19955262]
[1731868713271,0.05556,89988.0,89986.0,0.19955262]
[1731868713676,0.055561,89986.0,89985.0,0.09216]
[1731868713977,0.055561,89986.0,89983.0,0.00012217]
[1731868714481,0.3608,89990.0,89983.0,0.00012217]
[1731868714482,0.055562,89985.0,89983.0,0.00012217]
[1731868714686,0.05556,89988.0,89983.0,0.05568417]
[1731868714976,0.3608,89990.0,89983.0,0.05568417]
[1731868714977,0.3608,89990.0,89988.0,0.05556]
[1731868715776,0.055554,89997.0,89988.0,0.05556]
[1731868716182,0.055557,89993.0,89988.0,0.05556]
[1731868716677,0.3608,89998.0,89989.0,0.055559]
[1731868716891,0.12923861,90005.0,89996.0,0.055555]
[1731868717481,0.3608,90006.0,89997.0,0.055554]
[1731868717876,0.3608,90006.0,89996.0,0.09216]
[1731868718077,0.05555,90004.0,89999.0,0.055553]
[1731868718579,0.055551,90003.0,89996.0,0.09216]
[1731868719994,0.055557,89992.0,89991.0,0.19955262]
[1731868720170,0.3608,89997.0,89988.0,0.29171262]
[1731868720373,0.0318,89996.0,89985.0,0.19955262]
[1731868720576,0.0318,89996.0,89983.0,0.19967479]
[1731868720577,0.055562,89985.0,89983.0,0.19967479]
[1731868720871,0.055562,89984.0,89983.0,0.00012217]
[1731868729288,0.3608,89991.0,89983.0,0.19960325]
[1731868729495,0.055562,89984.0,89983.0,0.00012217]
[1731868731094,0.055562,89984.0,89983.0,0.19960325]
[1731868732184,0.055562,89984.0,89983.0,0.00012217]
[1731868732397,0.055559,89989.0,89984.0,0.055562]
[1731868732689,0.3608,89991.0,89990.0,0.055558]
[1731868732881,0.36136001,89999.0,89989.0,0.17612355]
[1731868733079,0.055554,89998.0,89994.0,0.055555]
[1731868733278,0.36136001,89999.0,89995.0,0.087555]
[1731868733491,0.3608,89999.0,89995.0,0.087555]
[1731868733680,0.3608,89999.0,89995.0,0.032]
[1731868733990,0.3608,89999.0,89998.0,0.055554]
[1731868734775,0.3608,89999.0,89995.0,0.23162353]
[1731868734978,0.3608,89999.0,89998.0,0.19962353]
[1731868735580,0.3608,89999.0,89995.0,0.032]
[1731868738194,0.49195444,89999.0,89995.0,0.032]
[1731868739001,0.08540355,89996.0,89990.0,0.56042353]
[1731868739297,0.3608,89999.0,89990.0,0.3608]
[1731868739298,0.055558,89991.0,89990.0,0.3608]
[1731868739791,0.18680365,89991.0,89990.0,0.3608]
[1731868740195,0.13124565,89991.0,89990.0,0.3608]
[1731868740496,0.13124565,89991.0,89989.0,0.055559]
[1731868740711,0.13124565,89992.0,89991.0,0.055558]
[1731868741082,0.13124565,89993.0,89991.0,0.08540355]
[1731868741287,0.13124565,89994.0,89991.0,0.08540355]
[1731868741487,0.13124565,89996.0,89995.0,0.055555]
[1731868741882,0.13124565,89997.0,89996.0,0.055555]
[1731868742082,0.3608,89999.0,89996.0,0.055555]
[1731868742083,0.13124565,89998.0,89996.0,0.055555]
[1731868742892,0.3608,89999.0,89996.0,0.055555]
[1731868742893,0.13124565,89997.0,89996.0,0.055555]
[1731868743099,0.13124565,89998.0,89996.0,0.055555]
[1731868743591,0.3608,89999.0,89996.0,0.32171971]
[1731868743798,0.3608,89999.0,89996.0,0.055555]
[1731868744590,0.3608,89999.0,89996.0,0.32171971]
[1731868745293,0.3608,89999.0,89998.0,0.26616471]
[1731868745495,0.3608,89999.0,89994.0,0.33270589]
[1731868745693,0.055548,90008.0,90002.0,0.055551]
[1731868745891,0.055548,90008.0,90003.0,0.41257021]
[1731868746502,0.3608,90010.0,90005.0,0.055549]
[1731868746687,0.3608,90010.0,90008.0,0.19971643]
[1731868747001,0.055553,89999.0,89998.0,0.19968786]
[1731868747186,0.055553,89999.0,89997.0,0.09072]
[1731868747389,0.055553,89999.0,89998.0,0.19968786]
[1731868747592,0.055553,89999.0,89997.0,0.29040786]
[1731868747793,0.055553,89999.0,89998.0,0.19968786]
[1731868747990,0.055554,89998.0,89997.0,0.29040786]
[1731868748193,0.0318,90008.0,90002.0,0.055551]
[1731868748194,0.055548,90008.0,90002.0,0.055551]
[1731868748387,0.36136001,90010.0,90009.0,0.055547]
[1731868748691,0.3608,90010.0,90009.0,0.146267]
[1731868749600,0.3608,90010.0,90009.0,0.41237039]
[1731868750293,0.055538,90023.0,90011.0,0.055545]
[1731868750598,0.3608,90024.0,90011.0,0.055545]
[1731868750795,0.0052,90031.0,90011.0,0.055545]
[1731868750990,0.055531,90035.0,90022.0,0.19945433]
[1731868751299,0.055531,90035.0,90019.0,0.3608]
[1731868751300,0.055531,90035.0,90024.0,0.19945433]
[1731868751493,0.055531,90035.0,90023.0,0.09072]
[1731868751494,0.055531,90035.0,90023.0,0.29017433]
[1731868751696,0.0624,90038.0,90023.0,0.09072]
[1731868751891,9.385e-05,90032.0,90024.0,0.055537]
[1731868752098,0.055533,90031.0,90025.0,0.055537]
[1731868752499,9.385e-05,90032.0,90025.0,0.055537]
[1731868752687,9.385e-05,90032.0,90023.0,0.09072]
[1731868752891,9.385e-05,90032.0,90029.0,0.055534]
[1731868753602,0.05562685,90032.0,90023.0,0.146258]
[1731868753897,0.055535,90028.0,90023.0,0.09072]
[1731868754094,9.385e-05,90032.0,90023.0,0.09072]
[1731868754402,0.055534,90030.0,90025.0,0.055537]
[1731868754701,9.385e-05,90032.0,90026.0,0.055536]
[1731868754902,9.385e-05,90032.0,90023.0,0.09072]
[1731868755288,9.385e-05,90032.0,90029.0,0.055534]
[1731868755709,9.385e-05,90032.0,90023.0,0.09072]
[1731868756295,9.385e-05,90032.0,90029.0,0.055534]
[1731868758599,9.385e-05,90032.0,90029.0,0.00877834]
[1731868758793,9.385e-05,90032.0,90029.0,0.055534]
[1731868760900,0.05562685,90032.0,90025.0,0.055536]
[1731868761109,0.05562685,90032.0,90026.0,0.055536]
[1731868763502,0.05562685,90032.0,90027.0,0.055535]
[1731868763711,9.385e-05,90032.0,90028.0,0.09]
[1731868765011,9.385e-05,90032.0,90028.0,0.145535]
[1731868766712,9.385e-05,90032.0,90028.0,0.09]
[1731868767006,9.385e-05,90032.0,90031.0,0.055533]
[1731868768116,9.385e-05,90032.0,90031.0,0.05567628]
[1731868768814,9.385e-05,90032.0,90031.0,0.38887628]
[1731868769112,0.00056001,90039.0,90038.0,0.055529]
[1731868769317,0.36246653,90056.0,90049.0,0.055522]
[1731868769516,0.36246653,90056.0,90050.0,0.122521]
[1731868769722,0.41798453,90056.0,90051.0,0.08996]
[1731868769902,0.00166653,90056.0,90051.0,0.14548]
[1731868770103,0.00166653,90056.0,90051.0,0.08996]
[1731868770309,0.00166653,90056.0,90048.0,0.08540355]
[1731868770310,0.055527,90042.0,90039.0,0.0324]
[1731868770502,0.055527,90042.0,90040.0,0.08996]
[1731868770719,0.055523,90048.0,90040.0,0.08996]
[1731868771101,0.3608,90052.0,90040.0,0.08996]
[1731868771102,0.055524,90046.0,90040.0,0.08996]
[1731868771613,0.00056001,90052.0,90050.0,0.055521]
[1731868771811,0.00166653,90056.0,90051.0,0.08996]
[1731868772019,0.00166653,90056.0,90055.0,0.08540355]
[1731868772719,0.00011144,90059.0,90039.0,0.08540355]
[1731868772903,0.00011144,90059.0,90043.0,0.08996]
[1731868773520,0.055519,90054.0,90044.0,0.055525]
[1731868773713,0.05552,90053.0,90044.0,0.055525]
[1731868774319,0.05552,90053.0,90045.0,0.055524]
[1731868774504,0.13124565,90054.0,90043.0,0.08996]
[1731868774705,0.13124565,90055.0,90052.0,0.05552]
[1731868775815,0.13124565,90056.0,90046.0,0.08540355]
[1731868776017,0.13124565,90056.0,90054.0,0.055518]
[1731868776220,0.13124565,90056.0,90055.0,0.08996]
[1731868776403,0.13135709,90059.0,90058.0,0.055516]
[1731868776712,0.00011144,90059.0,90058.0,0.055516]
[1731868781519,0.00011144,90059.0,90048.0,0.19945433]
[1731868781520,0.055519,90054.0,90048.0,0.055523]
[1731868781705,0.055519,90054.0,90049.0,0.08996]
[1731868781906,0.05552,90052.0,90050.0,0.08996]
[1731868783210,0.031,90058.0,90050.0,0.08996]
[1731868783412,0.031,90058.0,90054.0,0.055519]
[1731868783623,0.00011144,90059.0,90058.0,0.055516]
[1731868786416,0.00011144,90059.0,90058.0,0.555516]
[1731868786825,0.00011144,90059.0,90058.0,0.58897627]
[1731868795811,0.00011144,90059.0,90058.0,0.53346027]
[1731868796218,0.00011144,90059.0,90058.0,0.62178027]
[1731868797617,0.41642744,90059.0,90058.0,0.5]
[1731868799530,0.54767309,90059.0,90058.0,0.5]
[1731868799719,0.88079309,90059.0,90058.0,0.5]
[1731868799919,0.74954744,90059.0,90058.0,0.5]
[1731868800120,0.41642744,90059.0,90058.0,0.5]
[1731868801224,0.74954744,90059.0,90058.0,0.5]
[1731868801421,1.04804365,90059.0,90040.0,0.08832]
[1731868801622,0.416327,90041.0,90040.0,0.08832]
[1731868802839,0.05553,90036.0,90035.0,0.25498533]
[1731868803136,0.05553,90036.0,90035.0,0.055531]
[1731868804219,0.055532,90033.0,90032.0,0.08832]
[1731868804633,0.001,90036.0,90031.0,0.0018092]
[1731868804832,0.055533,90032.0,90031.0,0.0018092]
[1731868805223,0.055533,90032.0,90016.0,0.0052]
[1731868805224,0.05554,90020.0,90018.0,0.19942705]
[1731868805425,0.055533,90032.0,90016.0,0.08832]
[1731868805426,0.055541,90018.0,90016.0,0.08832]
[1731868805934,0.055541,90018.0,90016.0,0.143862]
[1731868806237,0.0329,90022.0,90016.0,0.143862]
[1731868806238,0.0329,90022.0,90021.0,0.055539]
[1731868806420,0.36236001,90033.0,90019.0,0.08540355]
[1731868806621,0.055535,90029.0,90028.0,0.055534]
[1731868806832,0.055535,90029.0,90028.0,0.143854]
[1731868807830,0.056535,90029.0,90028.0,0.08832]
[1731868808135,0.055541,90019.0,90018.0,0.08832]
[1731868809225,0.088541,90019.0,90018.0,0.08832]
[1731868809932,0.088541,90019.0,90017.0,0.00013992]
[1731868810135,0.0328,90018.0,90017.0,0.00013992]
[1731868810329,0.11820355,90018.0,90017.0,0.00013992]
[1731868811826,0.11920355,90018.0,90017.0,0.00013992]
[1731868814328,0.05555,90004.0,90003.0,0.00166652]
[1731868815341,0.05568639,90004.0,90003.0,0.00166652]
[1731868816339,0.05668639,90004.0,90003.0,0.00166652]
[1731868817640,0.05668639,90004.0,90003.0,0.00366652]
[1731868819141,0.00113639,90004.0,90003.0,0.00366652]
[1731868820550,0.00113639,90004.0,90003.0,0.05921652]
[1731868821335,0.00113639,90004.0,90003.0,0.39253652]
[1731868821545,0.3608,90007.0,90006.0,0.055549]
[1731868821851,0.00166671,90023.0,90015.0,0.055543]
[1731868822050,0.00166671,90023.0,90016.0,0.11966]
[1731868822250,0.055539,90022.0,90016.0,0.175202]
[1731868822455,0.36093047,90020.0,90016.0,0.175202]
[1731868822939,0.055542,90017.0,90016.0,0.11966]
[1731868823546,0.36193047,90020.0,90018.0,0.055541]
[1731868824154,0.00113047,90020.0,90018.0,0.416341]
[1731868824455,0.00166671,90023.0,90022.0,0.055539]
[1731868824746,0.00166671,90023.0,90022.0,0.15136203]
[1731868825452,0.00166671,90023.0,90022.0,0.35078908]
[1731868825638,0.00166671,90023.0,90022.0,0.15136203]
[1731868826248,0.00166671,90023.0,90022.0,0.15336203]
[1731868827651,0.00014009,90036.0,90035.0,0.055531]
[1731868827948,0.00014009,90036.0,90035.0,0.22929455]
[1731868828652,0.416318,90056.0,90047.0,0.055523]
[1731868828837,0.055518,90055.0,90048.0,0.08836]
[1731868829445,0.3608,90056.0,90035.0,0.002]
[1731868829748,0.05553,90036.0,90035.0,0.002]
[1731868829948,0.05553,90036.0,90035.0,0.08832]
[1731868831057,0.05553,90036.0,90035.0,0.09032]
[1731868831442,0.14093355,90036.0,90035.0,0.002]
[1731868832454,0.14093355,90036.0,90018.0,0.0314]
[1731868832455,0.0628,90040.0,90027.0,0.055536]
[1731868832642,0.3608,90032.0,90027.0,0.055536]
[1731868833158,0.3608,90032.0,90028.0,0.08832]
[1731868833355,0.055533,90031.0,90028.0,0.08832]
[1731868834453,0.3608,90032.0,90028.0,0.08832]
[1731868834454,0.3608,90032.0,90031.0,0.055533]
[1731868834757,0.36136001,90041.0,90040.0,0.055528]
[1731868834952,0.3608,90041.0,90040.0,0.143848]
[1731868835446,0.3608,90041.0,90040.0,0.40542677]
[1731868835651,0.36148605,90051.0,90040.0,0.15112]
[1731868835851,0.36148605,90051.0,90041.0,0.1990904]
[1731868836056,0.36148605,90051.0,90044.0,0.1990904]
[1731868836457,0.36148605,90051.0,90042.0,0.1990904]
[1731868836657,0.36148605,90051.0,90041.0,0.055527]
[1731868836658,0.055522,90049.0,90041.0,0.055527]
[1731868836851,0.36148605,90051.0,90044.0,0.055525]
[1731868837046,0.36092604,90051.0,90045.0,0.055524]
[1731868837248,0.36092604,90051.0,90046.0,0.08832]
[1731868838148,0.36092604,90051.0,90049.0,0.14092455]
[1731868838348,0.00012604,90051.0,90049.0,0.14092455]
[1731868839857,0.00012604,90051.0,90049.0,0.14292455]
[1731868840248,0.00012604,90051.0,90050.0,0.00010538]
[1731868840749,0.36246604,90064.0,90050.0,0.00010538]
[1731868841052,0.3608,90064.0,90063.0,0.055513]
[1731868841255,0.0331,90078.0,90063.0,0.08832]
[1731868841256,0.16433085,90078.0,90063.0,0.08832]
[1731868841457,0.0331,90078.0,90072.0,0.055508]
[1731868841846,0.00012946,90074.0,90072.0,0.055508]
[1731868843558,0.00012946,90074.0,90072.0,0.057508]
[1731868844762,0.00012946,90074.0,90072.0,0.002]
[1731868845655,0.00012946,90074.0,90073.0,0.055507]
[1731868847151,0.00012946,90074.0,90073.0,0.057507]
[1731868847360,0.00012946,90074.0,90073.0,0.14291055]
[1731868847566,0.00012946,90074.0,90073.0,0.002]
[1731868847864,0.05563646,90074.0,90073.0,0.002]
[1731868848657,0.05563646,90074.0,90065.0,0.08832]
[1731868848658,0.055512,90066.0,90065.0,0.08832]
[1731868848847,0.055513,90063.0,90057.0,0.055517]
[1731868849056,0.055513,90063.0,90058.0,0.143836]
[1731868849256,0.055513,90063.0,90059.0,0.143836]
[1731868849457,0.055515,90061.0,90060.0,0.08832]
[1731868849865,0.3608,90066.0,90064.0,0.055513]
[1731868850765,0.3608,90066.0,90063.0,0.08832]
[1731868850965,0.055516,90059.0,90058.0,0.001]
[1731868851674,0.05552,90053.0,90052.0,0.08832]
[1731868851968,0.41632,90053.0,90052.0,0.08832]
[1731868852862,0.3608,90053.0,90052.0,0.001]
[1731868853059,0.3608,90053.0,90050.0,0.00010538]
[1731868853060,0.055521,90051.0,90050.0,0.00010538]
[1731868853280,0.055526,90042.0,90041.0,0.00166567]
[1731868853467,0.416326,90042.0,90041.0,0.00166567]
[1731868854169,0.416326,90042.0,90041.0,0.00179014]
[1731868855365,0.055526,90042.0,90041.0,0.00179014]
[1731868855768,0.055526,90042.0,90041.0,0.00279014]
[1731868861674,0.055526,90042.0,90041.0,0.00112447]
[1731868870281,0.388686,90042.0,90041.0,4.7e-07]
[1731868870483,0.388686,90042.0,90028.0,1e-08]
[1731868870484,0.055534,90029.0,90028.0,1e-08]
[1731868870681,1.19577755,90029.0,90028.0,1e-08]
[1731868871379,1.1958955,90029.0,90028.0,1e-08]
[1731868871584,1.1958955,90029.0,90012.0,0.00166612]
[1731868871776,0.416344,90013.0,90012.0,0.00166612]
[1731868873280,0.3608,90021.0,90020.0,0.05554]
[1731868873675,0.00067796,90029.0,90020.0,0.08748612]
[1731868873982,0.00067796,90029.0,90028.0,0.055535]
[1731868873983,0.00011795,90029.0,90028.0,0.055535]
[1731868874483,0.055527,90041.0,90026.0,0.3608]
[1731868874684,0.055527,90041.0,90034.0,0.08540355]
[1731868874985,0.3608,90050.0,90035.0,0.08832]
[1731868875285,0.3608,90050.0,90046.0,0.055524]
[1731868875479,0.36091894,90050.0,90047.0,0.08832]
[1731868875678,0.055522,90049.0,90047.0,0.08832]
[1731868876281,0.36147895,90050.0,90047.0,0.08832]
[1731868876492,0.31091894,90050.0,90048.0,0.055522]
[1731868876793,0.00114188,90066.0,90059.0,0.055515]
[1731868877088,0.00114188,90066.0,90060.0,0.44912]
[1731868877480,0.00114188,90066.0,90062.0,0.055514]
[1731868878887,0.00114188,90066.0,90060.0,0.00176]
[1731868878888,0.055514,90062.0,90060.0,0.00176]
[1731868879194,0.055514,90062.0,90045.0,0.00076]
[1731868879195,0.055524,90046.0,90045.0,0.00076]
[1731868879375,0.055524,90046.0,90031.0,0.08832]
[1731868879376,0.055527,90041.0,90031.0,0.08832]
[1731868880174,0.055527,90041.0,90029.0,0.055534]
[1731868880379,0.055527,90041.0,90026.0,0.08832]
[1731868880577,0.055527,90041.0,90040.0,0.00266587]
[1731868881091,0.055527,90041.0,90040.0,0.00166587]
[1731868881299,0.055527,90041.0,90014.0,0.19873436]
[1731868881300,0.804647,90041.0,90030.0,8.7e-07]
[1731868881479,0.804647,90041.0,90017.0,0.055542]
[1731868881480,0.055538,90023.0,90017.0,0.055542]
[1731868881679,0.055536,90026.0,90017.0,0.055542]
[1731868882091,0.055536,90026.0,90015.0,0.44912]
[1731868882092,0.36140001,90031.0,90022.0,0.08540355]
[1731868882281,0.416334,90031.0,90022.0,0.055539]
[1731868882485,0.416334,90031.0,90023.0,0.08832]
[1731868882785,0.416334,90031.0,90024.0,0.08832]
[1731868884183,8.823e-05,90040.0,90030.0,0.48878525]
[1731868884385,8.823e-05,90040.0,90039.0,0.12798525]
[1731868884691,8.823e-05,90040.0,90039.0,0.44912]
[1731868884886,8.823e-05,90040.0,90039.0,0.3608]
[1731868885083,8.823e-05,90040.0,90027.0,0.19873436]
[1731868885289,0.36088823,90040.0,90028.0,0.09873846]
[1731868885483,0.36088823,90040.0,90024.0,0.001]
[1731868885484,0.055528,90039.0,90029.0,0.08832]
[1731868885890,0.055533,90031.0,90029.0,0.08832]
[1731868886095,0.0306,90039.0,90025.0,0.19873436]
[1731868886394,0.0306,90039.0,90017.0,0.416341]
[1731868886395,0.055533,90031.0,90030.0,0.001]
[1731868886893,0.055533,90031.0,90029.0,0.001]
[1731868887095,0.055534,90030.0,90029.0,0.001]
[1731868887591,0.055538,90023.0,90022.0,0.08832]
[1731868887785,0.416338,90023.0,90022.0,0.08832]
[1731868888588,0.3608,90023.0,90012.0,0.00166612]
[1731868888787,0.055544,90013.0,90012.0,0.00166612]
[1731868890103,0.3608,90023.0,90012.0,0.00166612]
[1731868890282,0.3608,90023.0,90022.0,0.055539]
[1731868890599,0.3608,90023.0,90022.0,0.144859]
[1731868890991,0.3608,90023.0,90022.0,0.143859]
[1731868891701,0.3608,90023.0,90022.0,0.144859]
[1731868892200,0.055531,90035.0,90030.0,0.055533]
[1731868892410,0.0306,90039.0,90033.0,0.055532]
[1731868892701,0.055527,90041.0,90034.0,0.08832]
[1731868892903,0.055527,90041.0,90037.0,0.055529]
[1731868894497,0.055527,90041.0,90037.0,0.056529]
[1731868896791,0.3608,90044.0,90039.0,0.055528]
[1731868896991,0.0052,90052.0,90039.0,0.055528]
[1731868897190,0.0052,90052.0,90051.0,0.055521]
[1731868897391,0.0318,90067.0,90051.0,0.57710525]
[1731868897798,0.0318,90067.0,90052.0,0.19896512]
[1731868898099,0.055518,90056.0,90053.0,0.08832]
[1731868898604,0.055518,90056.0,90052.0,0.05552]
[1731868898802,0.3608,90057.0,90051.0,0.001]
[1731868898990,0.3608,90057.0,90052.0,0.08832]
[1731868899195,0.05552,90053.0,90052.0,0.08832]
[1731868900916,0.05552,90053.0,90052.0,0.08932]
[1731868901204,0.05552,90053.0,90052.0,0.01218642]
[1731868901398,0.05552,90053.0,90052.0,0.01318642]
[1731868903102,0.05552,90053.0,90040.0,0.00166572]
[1731868903304,0.055527,90041.0,90040.0,0.00166572]
[1731868904507,0.055527,90041.0,90012.0,0.36246612]
[1731868904508,0.05554,90020.0,90012.0,0.36246612]
[1731868904695,0.055538,90024.0,90023.0,0.055537]
[1731868905295,0.055538,90024.0,90019.0,0.08832]
[1731868905296,0.05554,90021.0,90019.0,0.08832]
[1731868906204,0.3608,90030.0,90020.0,0.08832]
[1731868906391,0.055539,90021.0,90020.0,0.08832]
[1731868918519,0.055544,90013.0,90012.0,0.36246612]
[1731868918722,0.055544,90013.0,90012.0,0.45078612]
[1731868919304,0.055544,90013.0,90012.0,0.36246612]
[1731868919512,0.055544,90013.0,90012.0,0.00166612]
[1731868919513,0.18356339,90013.0,90012.0,0.00166612]
[1731868920210,0.18356339,90013.0,90012.0,0.00266612]
[1731868920606,0.18356339,90013.0,90008.0,9.111e-05]
[1731868920804,0.416347,90009.0,90008.0,9.111e-05]
[1731868922122,0.749667,90009.0,90008.0,1.1e-07]
[1731868922315,0.54436639,90009.0,90008.0,1.1e-07]
[1731868923223,0.54551036,90009.0,90008.0,1.1e-07]
[1731868925512,0.36194397,90009.0,90008.0,1.1e-07]
[1731868925711,0.36194397,90009.0,90008.0,0.05554711]
[1731868925918,0.00114397,90009.0,90008.0,0.05554711]
[1731868926118,0.00114397,90009.0,90008.0,0.0889025]
[1731868926824,0.055537,90025.0,90014.0,0.055543]
[1731868927021,0.05554,90020.0,90015.0,0.08832]
[1731868927616,0.055541,90019.0,90015.0,0.08832]
[1731868928429,0.055541,90019.0,90016.0,0.055542]
[1731868928810,0.00010269,90020.0,90019.0,0.055541]
[1731868928811,0.00110269,90020.0,90019.0,0.055541]
[1731868929017,0.00110269,90020.0,90019.0,0.1408906]
[1731868929215,0.00110269,90020.0,90019.0,0.33985572]
[1731868929419,0.00110269,90020.0,90019.0,0.1408906]
[1731868929626,0.00010269,90020.0,90019.0,0.1408906]
[1731868929830,0.00010269,90020.0,90019.0,0.06596113]
[1731868930021,0.00010269,90020.0,90019.0,0.055541]
[1731868930420,0.00010269,90020.0,90019.0,0.416341]
[1731868930617,0.055524,90046.0,90031.0,0.055533]
[1731868930827,0.055524,90046.0,90031.0,0.5344696]
[1731868931020,0.055524,90046.0,90043.0,0.3608]
[1731868931529,0.13092088,90054.0,90043.0,0.3608]
[1731868931723,0.00013238,90049.0,90047.0,0.055523]
[1731868933931,0.00013238,90049.0,90048.0,0.0314]
[1731868934134,0.00013238,90049.0,90048.0,0.40261647]
[1731868934426,0.00634188,90066.0,90065.0,0.055512]
[1731868934627,0.00114188,90066.0,90065.0,0.416312]
[1731868934828,0.00114188,90066.0,90065.0,0.143832]
[1731868935934,0.00114188,90066.0,90065.0,0.50471627]
[1731868941727,0.00114188,90066.0,90065.0,0.51513015]
[1731868941935,0.00114188,90066.0,90065.0,0.50471627]
[1731868942539,0.00114188,90066.0,90065.0,0.51513015]
[1731868944529,0.00114188,90066.0,90065.0,0.50471627]
[1731868944729,0.00114188,90066.0,90065.0,0.5151303]
[1731868945138,0.00114188,90066.0,90065.0,0.50467627]
[1731868945339,0.00114188,90066.0,90065.0,0.59002587]
[1731868945540,0.00114188,90066.0,90065.0,0.60043975]
[1731868947538,0.00114188,90066.0,90065.0,0.93351975]
[1731868947740,0.00425743,90072.0,90067.0,0.055511]
[1731868947741,0.00370183,90071.0,90067.0,0.055511]
[1731868947932,0.00370183,90071.0,90069.0,0.05551]
[1731868948132,0.00370183,90071.0,90070.0,0.01041388]
[1731868948843,0.00370183,90071.0,90070.0,0.18404348]
[1731868949033,0.00793449,90080.0,90076.0,0.055505]
[1731868949338,0.00793449,90080.0,90076.0,0.42671888]
[1731868949529,0.0052,90091.0,90078.0,0.055504]
[1731868949729,0.02244383,90095.0,90089.0,0.5016466]
[1731868949930,0.02244383,90095.0,90089.0,0.5899266]
[1731868950130,0.02244383,90095.0,90089.0,0.60034048]
[1731868951448,0.02244383,90095.0,90089.0,0.51206048]
[1731868951633,0.02244383,90095.0,90089.0,0.60034048]
[1731868953155,0.02244383,90095.0,90089.0,0.42671088]
[1731868953440,0.02244383,90095.0,90089.0,0.54751894]
[1731868953441,0.032,90091.0,90089.0,0.54751894]
[1731868953942,0.032,90091.0,90089.0,0.63286854]
[1731868954340,0.02244383,90095.0,90089.0,0.63286854]
[1731868955436,0.02244383,90095.0,90089.0,0.54751894]
[1731868956941,0.02244383,90095.0,90089.0,0.54751665]
[1731868957835,0.02244383,90095.0,90089.0,0.53706506]
[1731868958349,0.02244383,90095.0,90089.0,0.416297]
[1731868958652,0.02244383,90095.0,90089.0,0.504537]
[1731868959948,0.055496,90091.0,90089.0,0.08824]
[1731868960241,0.06980421,90090.0,90088.0,0.08824]
[1731868960443,0.0305,90089.0,90088.0,0.08824]
[1731868960845,0.0305,90089.0,90088.0,0.01362761]
[1731868962251,0.0305,90089.0,90081.0,0.11818251]
[1731868962252,0.0305,90089.0,90081.0,0.03283291]
[1731868962550,0.055498,90088.0,90087.0,0.08824]
[1731868962935,0.416298,90088.0,90087.0,0.08824]
[1731868963543,0.447698,90088.0,90087.0,0.08824]
[1731868963935,0.01430721,90090.0,90088.0,0.055498]
[1731868965653,0.01872022,90092.0,90090.0,0.055497]
[1731868965836,0.01872022,90092.0,90091.0,0.0853496]
[1731868966838,0.01872022,90092.0,90091.0,0.09576061]
[1731868967444,0.01872022,90092.0,90090.0,0.055497]
[1731868967651,0.01872022,90092.0,90091.0,0.08824]
[1731868968151,0.02004387,90098.0,90097.0,0.055492]
[1731868968454,0.02004387,90098.0,90097.0,0.53770079]
[1731868968751,0.02004387,90098.0,90097.0,0.87066079]
[1731868968953,9.953e-05,90105.0,90104.0,0.055488]
[1731868969153,9.953e-05,90105.0,90104.0,0.06589853]
[1731868972948,9.953e-05,90105.0,90104.0,0.09802827]
[1731868974154,9.953e-05,90105.0,90104.0,0.45882827]
[1731868975857,0.0052,90115.0,90111.0,0.055484]
[1731868976056,0.13130349,90118.0,90111.0,0.144484]
[1731868976751,0.0052,90122.0,90111.0,0.144484]
[1731868976752,0.0052853,90122.0,90111.0,0.144484]
[1731868976953,0.0052853,90122.0,90121.0,0.055478]
[1731868977154,8.53e-05,90122.0,90121.0,0.5016276]
[1731868977353,8.53e-05,90122.0,90121.0,0.51203504]
[1731868977553,0.00792497,90136.0,90121.0,0.90270664]
[1731868977758,0.00272497,90136.0,90134.0,0.4461496]
[1731868977956,0.00272497,90136.0,90134.0,0.5351496]
[1731868978157,0.00272497,90136.0,90134.0,0.4461496]
[1731868978348,0.00272497,90136.0,90134.0,0.0853496]
[1731868978549,0.00272497,90136.0,90133.0,0.089]
[1731868978746,0.056559,90135.0,90133.0,0.089]
[1731868979352,0.056559,90135.0,90130.0,0.089]
[1731868980553,0.05547,90134.0,90130.0,0.089]
[1731868980757,0.055472,90131.0,90121.0,0.055477]
[1731868980951,0.00056001,90132.0,90120.0,0.0853496]
[1731868981263,0.00109,90135.0,90133.0,0.05547]
[1731868981460,0.00109,90135.0,90134.0,0.1743496]
[1731868981664,0.00109,90135.0,90134.0,0.0853496]
[1731868982868,0.00109,90135.0,90134.0,0.0957556]
[1731868985658,0.00272497,90136.0,90134.0,0.010406]
[1731868985858,0.00272497,90136.0,90133.0,0.089]
[1731868986868,0.00272497,90136.0,90127.0,0.3608]
[1731868987065,0.00272497,90136.0,90098.0,0.26529551]
[1731868987066,0.055471,90132.0,90128.0,0.089]
[1731868987270,0.055471,90132.0,90123.0,0.055476]
[1731868987466,0.055471,90132.0,90116.0,0.3608]
[1731868987467,0.055478,90120.0,90116.0,0.3608]
[1731868987768,0.120379,90119.0,90114.0,0.144482]
[1731868987957,0.152379,90119.0,90114.0,0.144482]